fUSD/lending_fUSD_20250809
["ID","MTS","AMOUNT","RATE_DAILY","PERIOD"]
[378118316,1754739042042,-151.0,0.00024168,2]
[378118319,1754739042052,-151.0,0.00024168,2]
[378118320,1754739042061,-151.0,0.00024168,2]
[378118322,1754739042070,-151.0,0.00024168,2]
[378118325,1754739042080,-151.0,0.00024168,2]
[378118327,1754739042092,-151.0,0.00024168,2]
[378118328,1754739042101,-151.0,0.00024168,2]
[378118331,1754739042110,-151.0,0.00024168,2]
[378118333,1754739042120,-151.0,0.00024168,2]
[378118335,1754739042130,-151.0,0.00024168,2]
[378118337,1754739042140,-151.0,0.00024168,2]
[378118339,1754739042152,-151.0,0.00024168,2]
[378118340,1754739042162,-151.0,0.00024168,2]
[378118342,1754739042172,-151.0,0.00024168,2]
[378118344,1754739042182,-151.0,0.00024168,2]
[378118346,1754739042200,-151.0,0.00024168,2]
[378118348,1754739042212,-242.69556983,0.00024168,2]
[378118351,1754739042222,-3402.70786623,0.00024181,2]
[378118352,1754739042231,-516.0,0.00024246,10]
[378118354,1754739042241,-300.0,0.00024301,2]
[378118357,1754739042251,-2110.0,0.00024389,2]
[378118359,1754739042260,-150.0,0.00024406,2]
[378118360,1754739042269,-151.0,0.00024406,7]
[378118362,1754739042279,-151.0,0.00024406,7]
[378118364,1754739042288,-151.0,0.00024406,7]
[378118366,1754739042297,-151.0,0.00024406,7]
[378118368,1754739042306,-1236.494303,0.00024406,7]
[378118370,1754739042316,-1236.494303,0.00024406,7]
[378118372,1754739042336,-206.5,0.00024416,2]
[378118374,1754739042348,-1086.0,0.00024429,2]
[378118376,1754739042358,-500.0,0.00024429,2]
[378118378,1754739042367,-514.0,0.00024429,2]
[378118380,1754739042377,-150.0,0.00024434,2]
[378118383,1754739042387,-1086.0,0.0002444,2]
[378118384,1754739042396,-1086.0,0.00024448,2]
[378118387,1754739042407,-150.0,0.00024458,2]
[378118389,1754739042416,-150.0,0.00024482,2]
[378118390,1754739042426,-1086.0,0.00024491,2]
[378118392,1754739042436,-150.0,0.00024529,2]
[378118394,1754739042445,-150.0,0.00024529,2]
[378118396,1754739042455,-150.0,0.00024532,2]
[378118398,1754739042464,-150.0,0.00024533,2]
[378118400,1754739042473,-1000.0,0.00024538,2]
[378118402,1754739042483,-1000.0,0.00024539,2]
[378118404,1754739042492,-150.0,0.00024541,2]
[378118406,1754739042501,-1000.0,0.00024542,2]
[378118408,1754739042510,-150.0,0.00024545,2]
[378118410,1754739042520,-150.0,0.00024545,2]
[378118412,1754739042529,-150.0,0.00024547,2]
[378118414,1754739042538,-150.0,0.00024551,2]
[378118416,1754739042547,-1000.0,0.00024553,2]
[378118418,1754739042556,-150.0,0.00024553,2]
[378118420,1754739042566,-467.70934487,0.00024557,2]
[378118422,1754739042574,-1000.0,0.0002456,2]
[378118424,1754739042584,-150.0,0.00024561,2]
[378118425,1754739042593,-150.0,0.00024561,2]
[378118427,1754739042603,-150.0,0.00024564,2]
[378118430,1754739042614,-150.0,0.00024569,2]
[378118432,1754739042625,-150.0,0.00024573,2]
[378118434,1754739042634,-150.0,0.00024574,2]
[378118436,1754739042643,-150.0,0.00024576,2]
[378118438,1754739042652,-150.0,0.0002458,2]
[378118440,1754739042663,-150.0,0.0002458,2]
[378118441,1754739042672,-150.0,0.00024582,2]
[378118443,1754739042681,-150.0,0.00024584,2]
[378118445,1754739042691,-150.0,0.00024585,2]
[378118447,1754739042700,-150.0,0.00024589,2]
[378118449,1754739042709,-500.0,0.00024592,2]
[378118451,1754739042719,-500.0,0.00024593,2]
[378118454,1754739042728,-200.0,0.00024593,2]
[378118455,1754739042738,-150.0,0.00024599,2]
[378118457,1754739042747,-150.0,0.000246,2]
[378118459,1754739042757,-150.0,0.00024602,2]
[378118461,1754739042767,-150.0,0.00024605,2]
[378118464,1754739042777,-150.0,0.00024605,2]
[378118468,1754739042786,-178.26043194,0.00024605,2]
[378118471,1754739042796,-1000.0,0.00024606,2]
[378118475,1754739042805,-1086.0,0.00024607,2]
[378118477,1754739042814,-150.0,0.00024609,2]
[378118479,1754739042824,-150.0,0.0002461,2]
[378118482,1754739042833,-150.0,0.0002461,2]
[378118485,1754739042843,-150.0,0.00024615,2]
[378118488,1754739042852,-150.0,0.00024623,2]
[378118491,1754739042863,-150.0,0.00024623,2]
[378118495,1754739042872,-1000.0,0.00024624,2]
[378118499,1754739042882,-150.0,0.00024625,2]
[378118501,1754739042892,-1000.0,0.00024628,2]
[378118504,1754739042901,-150.0,0.00024628,2]
[378118506,1754739042910,-150.0,0.00024631,2]
[378118509,1754739042920,-150.0,0.00024631,2]
[378118512,1754739042929,-150.0,0.00024631,2]
[378118515,1754739042941,-175.75962081,0.00024633,2]
[378118518,1754739042951,-150.0,0.00024634,2]
[378118522,1754739042960,-600.0,0.00024634,2]
[378118526,1754739042970,-600.0,0.00024634,2]
[378118528,1754739042979,-150.0,0.00024636,2]
[378118532,1754739042989,-150.0,0.00024637,2]
[378118534,1754739042998,-150.0,0.00024637,2]
[378118536,1754739043008,-150.0,0.0002464,2]
[378118538,1754739043017,-1000.0,0.00024642,2]
[378118540,1754739043027,-150.0,0.00024642,2]
[378118542,1754739043037,-600.0,0.00024644,2]
[378118544,1754739043046,-600.0,0.00024644,2]
[378118547,1754739043055,-150.0,0.00024646,2]
[378118548,1754739043064,-743.49120928,0.00024647,2]
[378118550,1754739043075,-150.0,0.00024647,2]
[378118553,1754739043085,-4047458.11010355,0.00024648,2]
[378118598,1754739043500,-888.0,0.00019732,3]
[378118600,1754739043510,-1776.0,0.00021972,3]
[378118602,1754739043519,-810.0,0.00022136,2]
[378118604,1754739043528,-4955.84156124,0.00024648,2]
[378118606,1754739043540,-291.6264018,0.00024648,2]
[378118608,1754739043552,-730986.14644782,0.00024648,2]
[378118612,1754739043580,-287831.55462232,0.00024648,2]
[378118693,1754739044331,-611194.58792246,0.00024648,2]
[378118694,1754739044351,-1231.76340583,0.00024648,2]
[378118695,1754739044382,-888.0,0.00022495,3]
[378118696,1754739044391,-8279812.95952298,0.00024648,2]
[378118697,1754739044400,-150.0,0.00024651,2]
[378118698,1754739044409,-600.0,0.00024653,2]
[378118699,1754739044419,-600.0,0.00024653,2]
[378118700,1754739044428,-1000.0,0.00024655,2]
[378118701,1754739044438,-150.0,0.00024656,2]
[378118704,1754739044450,-150.0,0.00024656,2]
[378118706,1754739044460,-300.0,0.00024656,2]
[378118708,1754739044469,-550.31606269,0.00024656,2]
[378118710,1754739044478,-666.0,0.00024656,2]
[378118712,1754739044487,-151.0,0.00024657,7]
[378118714,1754739044497,-2523.950152,0.00024657,2]
[378118716,1754739044506,-2371.007827,0.00024657,2]
[378118718,1754739044516,-190.749343,0.00024657,2]
[378118720,1754739044526,-152.78879,0.00024657,2]
[378118722,1754739044536,-151.0,0.00024657,7]
[378118724,1754739044545,-151.0,0.00024657,7]
[378118726,1754739044555,-151.807807,0.00024657,7]
[378118728,1754739044564,-152.372284,0.00024657,7]
[378118730,1754739044573,-151.0,0.00024657,7]
[378118732,1754739044583,-151.0,0.00024657,7]
[378118734,1754739044593,-151.0,0.00024657,7]
[378118736,1754739044603,-151.0,0.00024657,7]
[378118738,1754739044613,-151.0,0.00024657,7]
[378118740,1754739044622,-151.0,0.00024657,7]
[378118742,1754739044633,-289.078243,0.00024657,7]
[378118744,1754739044642,-153.520008,0.00024657,7]
[378118746,1754739044652,-151.0,0.00024657,7]
[378118748,1754739044662,-151.0,0.00024657,7]
[378118750,1754739044671,-193.868338,0.00024657,7]
[378118752,1754739044681,-151.0,0.00024657,7]
[378118754,1754739044690,-151.0,0.00024657,7]
[378118756,1754739044700,-400.0,0.00024657,2]
[378118758,1754739044709,-400.0,0.00024657,2]
[378118760,1754739044718,-400.0,0.00024657,2]
[378118762,1754739044728,-400.0,0.00024657,2]
[378118764,1754739044737,-403.52699305,0.00024657,2]
[378118766,1754739044746,-400.0,0.00024657,2]
[378118768,1754739044756,-400.0,0.00024657,2]
[378118770,1754739044765,-151.0,0.00024657,7]
[378118772,1754739044774,-400.0,0.00024657,2]
[378118774,1754739044784,-400.0,0.00024657,2]
[378118776,1754739044793,-400.0,0.00024657,2]
[378118778,1754739044802,-151.0,0.00024657,7]
[378118780,1754739044811,-400.0,0.00024657,2]
[378118782,1754739044821,-151.0,0.00024657,7]
[378118784,1754739044832,-151.0,0.00024657,7]
[378118786,1754739044842,-151.0,0.00024657,7]
[378118788,1754739044851,-400.0,0.00024657,2]
[378118790,1754739044860,-400.0,0.00024657,2]
[378118792,1754739044870,-400.0,0.00024657,2]
[378118794,1754739044879,-400.0,0.00024657,2]
[378118796,1754739044888,-400.0,0.00024657,2]
[378118798,1754739044897,-151.0,0.00024657,7]
[378118800,1754739044907,-151.0,0.00024657,7]
[378118803,1754739044916,-400.0,0.00024657,2]
[378118804,1754739044925,-400.0,0.00024657,2]
[378118806,1754739044935,-153.272848,0.00024657,7]
[378118808,1754739044948,-400.0,0.00024657,2]
[378118810,1754739044957,-400.0,0.00024657,2]
[378118812,1754739044967,-400.0,0.00024657,2]
[378118815,1754739044976,-400.0,0.00024657,2]
[378118817,1754739044986,-400.0,0.00024657,2]
[378118818,1754739044996,-151.0,0.00024657,7]
[378118821,1754739045005,-151.0,0.00024657,7]
[378118823,1754739045016,-400.0,0.00024657,2]
[378118825,1754739045027,-400.0,0.00024657,2]
[378118827,1754739045037,-400.0,0.00024657,2]
[378118829,1754739045047,-151.0,0.00024657,7]
[378118831,1754739045057,-151.0,0.00024657,7]
[378118833,1754739045066,-400.0,0.00024657,2]
[378118835,1754739045075,-400.0,0.00024657,2]
[378118837,1754739045084,-235.573636,0.00024657,7]
[378118839,1754739045094,-235.573636,0.00024657,7]
[378118841,1754739045104,-400.0,0.00024657,2]
[378118843,1754739045113,-235.573636,0.00024657,7]
[378118845,1754739045122,-235.573636,0.00024657,7]
[378118847,1754739045132,-400.0,0.00024657,2]
[378118848,1754739045141,-400.0,0.00024657,2]
[378118850,1754739045150,-400.0,0.00024657,2]
[378118852,1754739045160,-400.0,0.00024657,2]
[378118854,1754739045169,-400.0,0.00024657,2]
[378118856,1754739045178,-400.0,0.00024657,2]
[378118858,1754739045188,-151.0,0.00024657,7]
[378118861,1754739045197,-151.0,0.00024657,7]
[378118862,1754739045207,-400.0,0.00024657,2]
[378118865,1754739045216,-175.24102281,0.00024657,2]
[378118867,1754739045225,-400.0,0.00024657,2]
[378118868,1754739045234,-400.0,0.00024657,2]
[378118871,1754739045250,-401.03069414,0.00024657,2]
[378118873,1754739045271,-164.115116,0.00024657,7]
[378118874,1754739045291,-164.115116,0.00024657,7]
[378118876,1754739045301,-402.27160713,0.00024657,2]
[378118878,1754739045311,-400.0,0.00024657,2]
[378118880,1754739045320,-400.0,0.00024657,2]
[378118882,1754739045330,-164.115116,0.00024657,7]
[378118884,1754739045340,-164.115116,0.00024657,7]
[378118886,1754739045349,-400.0,0.00024657,2]
[378118889,1754739045360,-400.0,0.00024657,2]
[378118891,1754739045370,-400.0,0.00024657,2]
[378118892,1754739045379,-400.0,0.00024657,2]
[378118895,1754739045388,-400.0,0.00024657,2]
[378118896,1754739045397,-400.0,0.00024657,2]
[378118899,1754739045407,-400.0,0.00024657,2]
[378118901,1754739045416,-400.0,0.00024657,2]
[378118903,1754739045425,-400.0,0.00024657,2]
[378118905,1754739045434,-400.0,0.00024657,2]
[378118907,1754739045443,-400.0,0.00024657,2]
[378118909,1754739045452,-403.83211899,0.00024657,2]
[378118911,1754739045461,-401.28527456,0.00024657,2]
[378118913,1754739045470,-400.0,0.00024657,2]
[378118915,1754739045479,-400.0,0.00024657,2]
[378118917,1754739045489,-400.0,0.00024657,2]
[378118919,1754739045498,-400.0,0.00024657,2]
[378118921,1754739045507,-400.0,0.00024657,2]
[378118923,1754739045516,-400.0,0.00024657,2]
[378118924,1754739045527,-400.0,0.00024657,2]
[378118927,1754739045536,-400.0,0.00024657,2]
[378118928,1754739045546,-400.94062793,0.00024657,2]
[378118931,1754739045555,-400.0,0.00024657,2]
[378118932,1754739045565,-472.91665801,0.00024657,2]
[378118934,1754739045574,-407.83,0.00024657,2]
[378118936,1754739045584,-151.0,0.00024657,7]
[378118938,1754739045593,-400.0,0.00024657,2]
[378118940,1754739045602,-400.0,0.00024657,2]
[378118943,1754739045612,-400.0,0.00024657,2]
[378118944,1754739045621,-400.0,0.00024657,2]
[378118947,1754739045632,-400.0,0.00024657,2]
[378118949,1754739045641,-400.0,0.00024657,2]
[378118951,1754739045650,-525.03643299,0.00024657,2]
[378118953,1754739045662,-400.0,0.00024657,2]
[378118955,1754739045671,-400.0,0.00024657,2]
[378118957,1754739045680,-467.27193659,0.00024657,2]
[378118959,1754739045690,-400.0,0.00024657,2]
[378118961,1754739045700,-400.0,0.00024657,2]
[378118963,1754739045709,-400.0,0.00024657,2]
[378118965,1754739045718,-400.0,0.00024657,2]
[378118967,1754739045728,-68.1124382,0.00024657,2]
[378118971,1754739045757,-331.8875618,0.00024657,2]
[378118973,1754739045766,-400.0,0.00024657,2]
[378118975,1754739045776,-400.0,0.00024657,2]
[378118977,1754739045785,-402.49227523,0.00024657,2]
[378118979,1754739045795,-465.38,0.00024657,2]
[378118981,1754739045805,-400.0,0.00024657,2]
[378118985,1754739045815,-400.0,0.00024657,2]
[378118988,1754739045825,-462.08017158,0.00024657,2]
[378118990,1754739045835,-400.0,0.00024657,2]
[378118992,1754739045844,-400.0,0.00024657,2]
[378118994,1754739045853,-400.0,0.00024657,2]
[378118996,1754739045863,-400.0,0.00024657,2]
[378118998,1754739045873,-315.55697067,0.00024657,2]
[378119001,1754739045884,-400.0,0.00024657,2]
[378119002,1754739045893,-400.0,0.00024657,2]
[378119005,1754739045904,-400.0,0.00024657,2]
[378119006,1754739045913,-400.0,0.00024657,2]
[378119009,1754739045923,-400.0,0.00024657,2]
[378119011,1754739045933,-400.0,0.00024657,2]
[378119013,1754739045946,-400.0,0.00024657,2]
[378119015,1754739045956,-400.0,0.00024657,2]
[378119017,1754739045965,-400.0,0.00024657,2]
[378119019,1754739045975,-400.0,0.00024657,2]
[378119021,1754739045985,-400.0,0.00024657,2]
[378119023,1754739045994,-400.0,0.00024657,2]
[378119025,1754739046003,-400.0,0.00024657,2]
[378119026,1754739046012,-400.0,0.00024657,2]
[378119029,1754739046022,-400.0,0.00024657,2]
[378119031,1754739046032,-400.0,0.00024657,2]
[378119033,1754739046041,-400.0,0.00024657,2]
[378119035,1754739046050,-400.0,0.00024657,2]
[378119037,1754739046059,-400.0,0.00024657,2]
[378119039,1754739046069,-400.0,0.00024657,2]
[378119040,1754739046079,-400.0,0.00024657,2]
[378119043,1754739046088,-400.0,0.00024657,2]
[378119045,1754739046098,-400.0,0.00024657,2]
[378119046,1754739046108,-400.0,0.00024657,2]
[378119049,1754739046117,-400.0,0.00024657,2]
[378119051,1754739046126,-400.0,0.00024657,2]
[378119052,1754739046136,-400.0,0.00024657,2]
[378119055,1754739046145,-400.0,0.00024657,2]
[378119056,1754739046155,-400.0,0.00024657,2]
[378119058,1754739046164,-400.0,0.00024657,2]
[378119060,1754739046173,-400.0,0.00024657,2]
[378119062,1754739046183,-400.0,0.00024657,2]
[378119065,1754739046193,-400.0,0.00024657,2]
[378119067,1754739046202,-400.0,0.00024657,2]
[378119069,1754739046211,-402.71635232,0.00024657,2]
[378119070,1754739046221,-414.3,0.00024657,2]
[378119072,1754739046231,-400.0,0.00024657,2]
[378119075,1754739046240,-400.0,0.00024657,2]
[378119077,1754739046250,-400.0,0.00024657,2]
[378119079,1754739046259,-400.0,0.00024657,2]
[378119080,1754739046268,-400.0,0.00024657,2]
[378119082,1754739046277,-400.0,0.00024657,2]
[378119084,1754739046286,-400.0,0.00024657,2]
[378119087,1754739046296,-400.0,0.00024657,2]
[378119089,1754739046306,-400.0,0.00024657,2]
[378119091,1754739046315,-402.22063696,0.00024657,2]
[378119092,1754739046324,-400.0,0.00024657,2]
[378119094,1754739046333,-400.0,0.00024657,2]
[378119096,1754739046342,-400.0,0.00024657,2]
[378119098,1754739046351,-400.0,0.00024657,2]
[378119101,1754739046361,-400.0,0.00024657,2]
[378119103,1754739046370,-190.26011486,0.00024657,2]
[378119105,1754739046380,-250.0,0.00024657,2]
[378119107,1754739046389,-400.0,0.00024657,2]
[378119108,1754739046398,-400.0,0.00024657,2]
[378119110,1754739046407,-400.0,0.00024657,2]
[378119112,1754739046417,-400.0,0.00024657,2]
[378119115,1754739046426,-400.0,0.00024657,2]
[378119117,1754739046436,-449.70221992,0.00024657,2]
[378119119,1754739046446,-400.0,0.00024657,2]
[378119121,1754739046455,-151.0,0.00024657,7]
[378119123,1754739046465,-400.0,0.00024657,2]
[378119125,1754739046474,-400.0,0.00024657,2]
[378119127,1754739046483,-400.0,0.00024657,2]
[378119129,1754739046492,-400.0,0.00024657,2]
[378119131,1754739046501,-400.0,0.00024657,2]
[378119133,1754739046510,-402.55848152,0.00024657,2]
[378119134,1754739046520,-400.0,0.00024657,2]
[378119136,1754739046530,-400.0,0.00024657,2]
[378119139,1754739046541,-151.0,0.00024657,7]
[378119141,1754739046550,-151.0,0.00024657,7]
[378119143,1754739046559,-400.0,0.00024657,2]
[378119144,1754739046568,-267.23309453,0.00024657,2]
[378119146,1754739046578,-400.0,0.00024657,2]
[378119148,1754739046587,-400.0,0.00024657,2]
[378119151,1754739046596,-400.0,0.00024657,2]
[378119152,1754739046606,-400.0,0.00024657,2]
[378119154,1754739046615,-151.0,0.00024657,7]
[378119156,1754739046625,-400.0,0.00024657,2]
[378119158,1754739046635,-400.0,0.00024657,2]
[378119160,1754739046645,-151.0,0.00024657,7]
[378119162,1754739046654,-402.13405788,0.00024657,2]
[378119164,1754739046664,-467.24,0.00024657,2]
[378119166,1754739046673,-400.0,0.00024657,2]
[378119168,1754739046682,-405.36,0.00024657,2]
[378119170,1754739046691,-400.0,0.00024657,2]
[378119172,1754739046700,-400.0,0.00024657,2]
[378119174,1754739046709,-400.0,0.00024657,2]
[378119176,1754739046719,-400.0,0.00024657,2]
[378119178,1754739046728,-400.0,0.00024657,2]
[378119180,1754739046738,-400.0,0.00024657,2]
[378119182,1754739046747,-400.0,0.00024657,2]
[378119184,1754739046758,-400.0,0.00024657,2]
[378119186,1754739046767,-400.0,0.00024657,2]
[378119188,1754739046776,-400.0,0.00024657,2]
[378119190,1754739046785,-400.0,0.00024657,2]
[378119192,1754739046794,-151.0,0.00024657,7]
[378119194,1754739046805,-400.0,0.00024657,2]
[378119196,1754739046814,-400.0,0.00024657,2]
[378119198,1754739046824,-400.0,0.00024657,2]
[378119200,1754739046833,-526.98066945,0.00024657,2]
[378119202,1754739046842,-400.0,0.00024657,2]
[378119204,1754739046852,-400.0,0.00024657,2]
[378119206,1754739046862,-400.0,0.00024657,2]
[378119208,1754739046871,-400.0,0.00024657,2]
[378119210,1754739046881,-400.0,0.00024657,2]
[378119212,1754739046890,-400.0,0.00024657,2]
[378119214,1754739046900,-400.0,0.00024657,2]
[378119216,1754739046909,-400.0,0.00024657,2]
[378119219,1754739046919,-455.55,0.00024657,2]
[378119221,1754739046928,-403.50635256,0.00024657,2]
[378119223,1754739046939,-400.0,0.00024657,2]
[378119225,1754739046951,-188.3674,0.00024657,7]
[378119226,1754739046959,-400.0,0.00024657,2]
[378119229,1754739046969,-400.0,0.00024657,2]
[378119231,1754739046978,-400.0,0.00024657,2]
[378119233,1754739046988,-400.0,0.00024657,2]
[378119235,1754739046997,-400.0,0.00024657,2]
[378119237,1754739047006,-400.0,0.00024657,2]
[378119238,1754739047017,-151.0,0.00024657,7]
[378119240,1754739047026,-400.0,0.00024657,2]
[378119242,1754739047036,-400.0,0.00024657,2]
[378119244,1754739047046,-377.64527009,0.00024657,2]
[378119246,1754739047055,-400.0,0.00024657,2]
[378119248,1754739047064,-400.0,0.00024657,2]
[378119250,1754739047074,-400.0,0.00024657,2]
[378119252,1754739047084,-400.0,0.00024657,2]
[378119254,1754739047094,-400.0,0.00024657,2]
[378119256,1754739047103,-400.0,0.00024657,2]
[378119258,1754739047113,-400.0,0.00024657,2]
[378119260,1754739047122,-400.0,0.00024657,2]
[378119262,1754739047131,-400.0,0.00024657,2]
[378119264,1754739047140,-400.0,0.00024657,2]
[378119266,1754739047150,-293.986155,0.00024657,7]
[378119268,1754739047160,-400.0,0.00024657,2]
[378119271,1754739047173,-401.57142725,0.00024657,2]
[378119272,1754739047182,-440.88,0.00024657,2]
[378119274,1754739047191,-400.0,0.00024657,2]
[378119276,1754739047201,-400.0,0.00024657,2]
[378119301,1754739047417,-400.0,0.00024657,2]
[378119303,1754739047426,-468.97,0.00024657,2]
[378119305,1754739047436,-400.0,0.00024657,2]
[378119307,1754739047445,-162.35762039,0.00024657,2]
[378119309,1754739047455,-465.1879484,0.00024657,2]
[378119311,1754739047464,-400.0,0.00024657,2]
[378119313,1754739047474,-400.0,0.00024657,2]
[378119315,1754739047482,-478.41498068,0.00024657,2]
[378119317,1754739047491,-492.21518025,0.00024657,2]
[378119319,1754739047501,-400.0,0.00024657,2]
[378119321,1754739047510,-400.0,0.00024657,2]
[378119323,1754739047519,-400.0,0.00024657,2]
[378119325,1754739047529,-400.0,0.00024657,2]
[378119327,1754739047539,-400.0,0.00024657,2]
[378119329,1754739047548,-400.0,0.00024657,2]
[378119332,1754739047558,-422.98,0.00024657,2]
[378119334,1754739047568,-400.0,0.00024657,2]
[378119336,1754739047577,-917.79,0.00024657,2]
[378119338,1754739047586,-400.0,0.00024657,2]
[378119340,1754739047595,-400.0,0.00024657,2]
[378119342,1754739047604,-400.0,0.00024657,2]
[378119344,1754739047614,-400.0,0.00024657,2]
[378119346,1754739047623,-400.0,0.00024657,2]
[378119347,1754739047631,-400.0,0.00024657,2]
[378119348,1754739047640,-400.0,0.00024657,2]
[378119349,1754739047649,-400.0,0.00024657,2]
[378119350,1754739047658,-400.0,0.00024657,2]
[378119351,1754739047667,-400.0,0.00024657,2]
[378119352,1754739047677,-300.0,0.00024657,2]
[378119353,1754739047685,-400.0,0.00024657,2]
[378119354,1754739047694,-501.87498161,0.00024657,2]
[378119355,1754739047703,-156.984356,0.00024657,7]
[378119356,1754739047712,-552.28,0.00024657,2]
[378119357,1754739047721,-400.0,0.00024657,2]
[378119358,1754739047730,-400.0,0.00024657,2]
[378119359,1754739047739,-400.0,0.00024657,2]
[378119360,1754739047749,-196.4080671,0.00024657,2]
[378119361,1754739047758,-151.0,0.00024657,7]
[378119363,1754739047767,-156.984356,0.00024657,7]
[378119365,1754739047777,-151.0,0.00024657,7]
[378119367,1754739047786,-400.0,0.00024657,2]
[378119369,1754739047795,-400.0,0.00024657,2]
[378119371,1754739047805,-400.0,0.00024657,2]
[378119373,1754739047815,-400.0,0.00024657,2]
[378119376,1754739047825,-400.0,0.00024657,2]
[378119378,1754739047835,-400.0,0.00024657,2]
[378119380,1754739047845,-400.0,0.00024657,2]
[378119382,1754739047854,-251.76373638,0.00024657,2]
[378119384,1754739047864,-400.0,0.00024657,2]
[378119386,1754739047873,-400.0,0.00024657,2]
[378119388,1754739047882,-400.0,0.00024657,2]
[378119390,1754739047893,-400.0,0.00024657,2]
[378119392,1754739047902,-400.0,0.00024657,2]
[378119393,1754739047911,-400.0,0.00024657,2]
[378119396,1754739047921,-400.0,0.00024657,2]
[378119398,1754739047930,-400.0,0.00024657,2]
[378119400,1754739047942,-400.0,0.00024657,2]
[378119402,1754739047951,-400.0,0.00024657,2]
[378119404,1754739047961,-400.0,0.00024657,2]
[378119406,1754739047970,-401.90366045,0.00024657,2]
[378119408,1754739047981,-400.0,0.00024657,2]
[378119410,1754739047990,-400.0,0.00024657,2]
[378119412,1754739048000,-400.0,0.00024657,2]
[378119414,1754739048010,-151.0,0.00024657,7]
[378119416,1754739048020,-400.0,0.00024657,2]
[378119418,1754739048235,-400.0,0.00024657,2]
[378119420,1754739048245,-400.0,0.00024657,2]
[378119422,1754739048255,-400.0,0.00024657,2]
[378119423,1754739048264,-400.0,0.00024657,2]
[378119426,1754739048273,-400.0,0.00024657,2]
[378119428,1754739048284,-400.0,0.00024657,2]
[378119430,1754739048293,-402.2726797,0.00024657,2]
[378119432,1754739048302,-400.0,0.00024657,2]
[378119434,1754739048311,-400.0,0.00024657,2]
[378119436,1754739048320,-400.0,0.00024657,2]
[378119438,1754739048330,-400.0,0.00024657,2]
[378119439,1754739048340,-173.96884413,0.00024657,2]
[378119441,1754739048349,-401.37100655,0.00024657,2]
[378119443,1754739048358,-400.0,0.00024657,2]
[378119446,1754739048368,-987.58,0.00024657,2]
[378119448,1754739048377,-400.0,0.00024657,2]
[378119449,1754739048387,-400.0,0.00024657,2]
[378119451,1754739048397,-400.0,0.00024657,2]
[378119454,1754739048406,-400.0,0.00024657,2]
[378119456,1754739048416,-400.0,0.00024657,2]
[378119458,1754739048425,-400.0,0.00024657,2]
[378119460,1754739048435,-400.0,0.00024657,2]
[378119462,1754739048443,-400.0,0.00024657,2]
[378119464,1754739048452,-400.0,0.00024657,2]
[378119465,1754739048461,-400.0,0.00024657,2]
[378119467,1754739048471,-400.0,0.00024657,2]
[378119470,1754739048480,-400.0,0.00024657,2]
[378119472,1754739048489,-400.0,0.00024657,2]